[Event "Live Chess"]
[Site "Chess.com"]
[Date "2010.12.08"]
[Round "-"]
[White "hipposcottimus"]
[Black "vinkos5"]
[Result "1-0"]
[CurrentPosition "r1bbk2r/pp1p1ppp/3N2q1/2p1P3/2QP4/3B4/PP2KRPP/2B5 b kq -"]
[Timezone "UTC"]
[ECO "B40"]
[ECOUrl "https://www.chess.com/openings/Sicilian-Defense-French-Variation"]
[UTCDate "2010.12.08"]
[UTCTime "01:12:12"]
[WhiteElo "1688"]
[BlackElo "1741"]
[TimeControl "60"]
[Termination "hipposcottimus won on time"]
[StartTime "01:12:12"]
[EndDate "2010.12.08"]
[EndTime "01:14:01"]
[Link "https://www.chess.com/game/live/75098743"]

1. e4 {[%clk 0:01:00]} 1... e6 {[%clk 0:01:00]} 2. Nf3 {[%clk 0:00:59.7]} 2... c5 {[%clk 0:00:59.6]} 3. d4 {[%clk 0:00:56.8]} 3... Nc6 {[%clk 0:00:59.1]} 4. d5 {[%clk 0:00:55.9]} 4... exd5 {[%clk 0:00:58.1]} 5. Qxd5 {[%clk 0:00:54.9]} 5... Nb4 {[%clk 0:00:57.8]} 6. Qc4 {[%clk 0:00:53.3]} 6... Nf6 {[%clk 0:00:52.7]} 7. Ng5 {[%clk 0:00:51.9]} 7... Qe7 {[%clk 0:00:43.6]} 8. c3 {[%clk 0:00:50.8]} 8... Nc2+ {[%clk 0:00:34.6]} 9. Kd2 {[%clk 0:00:46.1]} 9... Nxa1 {[%clk 0:00:31.1]} 10. Bd3 {[%clk 0:00:45.8]} 10... Ng4 {[%clk 0:00:23.4]} 11. Na3 {[%clk 0:00:37.8]} 11... Qxg5+ {[%clk 0:00:21.9]} 12. Kd1 {[%clk 0:00:34.1]} 12... Nxf2+ {[%clk 0:00:19.4]} 13. Ke2 {[%clk 0:00:30.9]} 13... Qf6 {[%clk 0:00:18.2]} 14. Rf1 {[%clk 0:00:28.7]} 14... Nc2 {[%clk 0:00:13]} 15. Rxf2 {[%clk 0:00:27.1]} 15... Nd4+ {[%clk 0:00:09.6]} 16. cxd4 {[%clk 0:00:25.4]} 16... Qg6 {[%clk 0:00:07.7]} 17. e5 {[%clk 0:00:22.3]} 17... Be7 {[%clk 0:00:03.7]} 18. Nb5 {[%clk 0:00:21.6]} 18... Bd8 {[%clk 0:00:00.8]} 19. Nd6+ {[%clk 0:00:19.5]} 1-0

[Event "Live Chess"]
[Site "Chess.com"]
[Date "2010.12.08"]
[Round "-"]
[White "hipposcottimus"]
[Black "hyperion48"]
[Result "0-1"]
[CurrentPosition "8/2k5/2p5/8/5K2/8/8/4qq2 w - -"]
[Timezone "UTC"]
[ECO "C50"]
[ECOUrl "https://www.chess.com/openings/Italian-Game"]
[UTCDate "2010.12.08"]
[UTCTime "01:08:53"]
[WhiteElo "1688"]
[BlackElo "1767"]
[TimeControl "60"]
[Termination "hyperion48 won on time"]
[StartTime "01:08:53"]
[EndDate "2010.12.08"]
[EndTime "01:11:20"]
[Link "https://www.chess.com/game/live/75098051"]

1. e4 {[%clk 0:01:00]} 1... e5 {[%clk 0:01:00]} 2. Nf3 {[%clk 0:00:59.6]} 2... Nc6 {[%clk 0:00:58.1]} 3. Bc4 {[%clk 0:00:59.3]} 3... d5 {[%clk 0:00:56.4]} 4. Bxd5 {[%clk 0:00:56.3]} 4... Nd4 {[%clk 0:00:54.6]} 5. Nxd4 {[%clk 0:00:53.6]} 5... exd4 {[%clk 0:00:54.2]} 6. d3 {[%clk 0:00:53.3]} 6... c6 {[%clk 0:00:53.3]} 7. Bb3 {[%clk 0:00:52]} 7... f5 {[%clk 0:00:51.9]} 8. c3 {[%clk 0:00:51.7]} 8... fxe4 {[%clk 0:00:50.8]} 9. dxe4 {[%clk 0:00:51.2]} 9... dxc3 {[%clk 0:00:50]} 10. Qxd8+ {[%clk 0:00:50.8]} 10... Kxd8 {[%clk 0:00:49.4]} 11. Nxc3 {[%clk 0:00:50.4]} 11... Bb4 {[%clk 0:00:47.8]} 12. O-O {[%clk 0:00:50.2]} 12... Nf6 {[%clk 0:00:46.9]} 13. Ne2 {[%clk 0:00:46.9]} 13... Nxe4 {[%clk 0:00:45.1]} 14. f3 {[%clk 0:00:46.7]} 14... Nd2 {[%clk 0:00:42.9]} 15. Bxd2 {[%clk 0:00:44.4]} 15... Bxd2 {[%clk 0:00:42.6]} 16. Ng3 {[%clk 0:00:43.4]} 16... Be3+ {[%clk 0:00:41.8]} 17. Kh1 {[%clk 0:00:41.8]} 17... Re8 {[%clk 0:00:41.2]} 18. Nf5 {[%clk 0:00:40.8]} 18... Bxf5 {[%clk 0:00:38.5]} 19. Rfe1 {[%clk 0:00:39.6]} 19... Kc7 {[%clk 0:00:35.7]} 20. Rad1 {[%clk 0:00:37.8]} 20... Rad8 {[%clk 0:00:34.2]} 21. g4 {[%clk 0:00:36.8]} 21... Bg6 {[%clk 0:00:30.6]} 22. Rc1 {[%clk 0:00:34.5]} 22... Bxc1 {[%clk 0:00:28.3]} 23. Rxc1 {[%clk 0:00:34.3]} 23... Re2 {[%clk 0:00:26.1]} 24. f4 {[%clk 0:00:33.6]} 24... Rdd2 {[%clk 0:00:23.1]} 25. f5 {[%clk 0:00:33.2]} 25... Rxh2+ {[%clk 0:00:22.3]} 26. Kg1 {[%clk 0:00:32.6]} 26... Rhg2+ {[%clk 0:00:21.7]} 27. Kf1 {[%clk 0:00:31.8]} 27... Rdf2+ {[%clk 0:00:20.7]} 28. Ke1 {[%clk 0:00:31.2]} 28... Re2+ {[%clk 0:00:20.4]} 29. Kf1 {[%clk 0:00:30.7]} 29... Ref2+ {[%clk 0:00:19.1]} 30. Ke1 {[%clk 0:00:30.4]} 30... Bf7 {[%clk 0:00:18.1]} 31. Rd1 {[%clk 0:00:27.1]} 31... Bxb3 {[%clk 0:00:16.8]} 32. axb3 {[%clk 0:00:26.8]} 32... Re2+ {[%clk 0:00:15.4]} 33. Kf1 {[%clk 0:00:26.2]} 33... Rxb2 {[%clk 0:00:14.5]} 34. Re1 {[%clk 0:00:23.9]} 34... Rgf2+ {[%clk 0:00:13.7]} 35. Kg1 {[%clk 0:00:22.1]} 35... Rg2+ {[%clk 0:00:13.2]} 36. Kf1 {[%clk 0:00:20.8]} 36... Rxg4 {[%clk 0:00:13.2]} 37. Re7+ {[%clk 0:00:19.2]} 37... Kb6 {[%clk 0:00:11.4]} 38. Re2 {[%clk 0:00:18.7]} 38... Rxb3 {[%clk 0:00:11]} 39. Rc2 {[%clk 0:00:17.3]} 39... Rf3+ {[%clk 0:00:11]} 40. Ke1 {[%clk 0:00:16.7]} 40... Rgf4 {[%clk 0:00:10.5]} 41. Kd1 {[%clk 0:00:15.5]} 41... Re3 {[%clk 0:00:10.5]} 42. Rb2+ {[%clk 0:00:13.3]} 42... Kc7 {[%clk 0:00:08.3]} 43. Kc1 {[%clk 0:00:13]} 43... Rc4+ {[%clk 0:00:07.5]} 44. Rc2 {[%clk 0:00:11.9]} 44... Rxc2+ {[%clk 0:00:06.4]} 45. Kxc2 {[%clk 0:00:11.6]} 45... Re2+ {[%clk 0:00:06]} 46. Kd3 {[%clk 0:00:10.7]} 46... Rf2 {[%clk 0:00:06]} 47. Ke4 {[%clk 0:00:10]} 47... Rxf5 {[%clk 0:00:06]} 48. Kxf5 {[%clk 0:00:09.2]} 48... a5 {[%clk 0:00:05.6]} 49. Ke6 {[%clk 0:00:07.8]} 49... a4 {[%clk 0:00:05.6]} 50. Kf7 {[%clk 0:00:07.5]} 50... a3 {[%clk 0:00:05.6]} 51. Kxg7 {[%clk 0:00:07.2]} 51... a2 {[%clk 0:00:05.6]} 52. Kxh7 {[%clk 0:00:07]} 52... a1=Q {[%clk 0:00:05.6]} 53. Kg6 {[%clk 0:00:06.7]} 53... b5 {[%clk 0:00:05.6]} 54. Kf5 {[%clk 0:00:06.4]} 54... b4 {[%clk 0:00:05.6]} 55. Ke4 {[%clk 0:00:06.2]} 55... b3 {[%clk 0:00:05.6]} 56. Kf5 {[%clk 0:00:04.2]} 56... b2 {[%clk 0:00:05.6]} 57. Ke6 {[%clk 0:00:04]} 57... b1=Q {[%clk 0:00:05.6]} 58. Ke7 {[%clk 0:00:03.6]} 58... Qe1+ {[%clk 0:00:05.2]} 59. Kf7 {[%clk 0:00:03.3]} 59... Qad1 {[%clk 0:00:04.5]} 60. Kg6 {[%clk 0:00:03]} 60... Qg1+ {[%clk 0:00:03.9]} 61. Kf5 {[%clk 0:00:02.7]} 61... Qde1 {[%clk 0:00:03.7]} 62. Kf4 {[%clk 0:00:00.6]} 62... Qgf1+ {[%clk 0:00:03.7]} 0-1

[Event "Live Chess"]
[Site "Chess.com"]
[Date "2010.12.08"]
[Round "-"]
[White "hyperion48"]
[Black "hipposcottimus"]
[Result "0-1"]
[CurrentPosition "6k1/6pp/p7/1p3p2/5P2/8/2Pr1KPP/8 w - -"]
[Timezone "UTC"]
[ECO "C65"]
[ECOUrl "https://www.chess.com/openings/Ruy-Lopez-Opening-Berlin-Defense-4.O-O"]
[UTCDate "2010.12.08"]
[UTCTime "01:06:24"]
[WhiteElo "1760"]
[BlackElo "1695"]
[TimeControl "60"]
[Termination "hipposcottimus won on time"]
[StartTime "01:06:24"]
[EndDate "2010.12.08"]
[EndTime "01:08:35"]
[Link "https://www.chess.com/game/live/75097484"]

1. e4 {[%clk 0:01:00]} 1... e5 {[%clk 0:01:00]} 2. Nf3 {[%clk 0:00:59.1]} 2... Nc6 {[%clk 0:00:59.7]} 3. Bb5 {[%clk 0:00:57.8]} 3... Nf6 {[%clk 0:00:59]} 4. O-O {[%clk 0:00:55.3]} 4... a6 {[%clk 0:00:58.6]} 5. Ba4 {[%clk 0:00:54]} 5... b5 {[%clk 0:00:57.1]} 6. Bb3 {[%clk 0:00:53.4]} 6... Bb7 {[%clk 0:00:56.9]} 7. d4 {[%clk 0:00:52.3]} 7... Na5 {[%clk 0:00:52.7]} 8. dxe5 {[%clk 0:00:49.7]} 8... Nxe4 {[%clk 0:00:51.9]} 9. Bd5 {[%clk 0:00:45.4]} 9... Bxd5 {[%clk 0:00:45.2]} 10. Qxd5 {[%clk 0:00:44.4]} 10... Be7 {[%clk 0:00:38.2]} 11. Qxe4 {[%clk 0:00:42.2]} 11... O-O {[%clk 0:00:37.9]} 12. b4 {[%clk 0:00:38]} 12... f5 {[%clk 0:00:37.6]} 13. Qe2 {[%clk 0:00:35]} 13... Nc4 {[%clk 0:00:37.1]} 14. Nc3 {[%clk 0:00:32.8]} 14... Bxb4 {[%clk 0:00:35.7]} 15. Bd2 {[%clk 0:00:31]} 15... c6 {[%clk 0:00:34.5]} 16. Rab1 {[%clk 0:00:29.8]} 16... Ba5 {[%clk 0:00:31.3]} 17. Rfd1 {[%clk 0:00:27.1]} 17... d5 {[%clk 0:00:30.4]} 18. a3 {[%clk 0:00:23.6]} 18... Nxa3 {[%clk 0:00:28.3]} 19. Rb3 {[%clk 0:00:22.6]} 19... Nc4 {[%clk 0:00:27.1]} 20. Qe1 {[%clk 0:00:17.6]} 20... d4 {[%clk 0:00:26.6]} 21. Ne2 {[%clk 0:00:16.5]} 21... Nxd2 {[%clk 0:00:25.7]} 22. Rxd2 {[%clk 0:00:15.6]} 22... Bxd2 {[%clk 0:00:23.9]} 23. Qxd2 {[%clk 0:00:15.2]} 23... c5 {[%clk 0:00:23.5]} 24. Nfxd4 {[%clk 0:00:13.5]} 24... cxd4 {[%clk 0:00:22.2]} 25. Nxd4 {[%clk 0:00:13]} 25... Qe7 {[%clk 0:00:21.3]} 26. Rd3 {[%clk 0:00:12.3]} 26... Qxe5 {[%clk 0:00:20.4]} 27. Nc6 {[%clk 0:00:11.8]} 27... Qf6 {[%clk 0:00:19.8]} 28. Rd6 {[%clk 0:00:09.8]} 28... Qg5 {[%clk 0:00:17.9]} 29. f4 {[%clk 0:00:08.4]} 29... Qg4 {[%clk 0:00:15.9]} 30. Rd8 {[%clk 0:00:07.6]} 30... Raxd8 {[%clk 0:00:14.1]} 31. Nxd8 {[%clk 0:00:07]} 31... Qg6 {[%clk 0:00:13.4]} 32. Nc6 {[%clk 0:00:04.2]} 32... Qf6 {[%clk 0:00:12.9]} 33. Nd4 {[%clk 0:00:03]} 33... Rd8 {[%clk 0:00:10.2]} 34. Qe3 {[%clk 0:00:02.3]} 34... Qxd4 {[%clk 0:00:08.2]} 35. Qxd4 {[%clk 0:00:00.7]} 35... Rxd4 {[%clk 0:00:07.9]} 36. Kf2 {[%clk 0:00:00.1]} 36... Rd2+ {[%clk 0:00:07]} 0-1

[Event "Live Chess"]
[Site "Chess.com"]
[Date "2010.12.08"]
[Round "-"]
[White "hipposcottimus"]
[Black "hyperion48"]
[Result "0-1"]
[CurrentPosition "8/8/4k3/p1p5/8/3P4/PPP4P/1K4R1 w - -"]
[Timezone "UTC"]
[ECO "C57"]
[ECOUrl "https://www.chess.com/openings/Italian-Game-Fried-Liver-Attack-6...Kxf7-7.Qf3"]
[UTCDate "2010.12.08"]
[UTCTime "01:04:00"]
[WhiteElo "1684"]
[BlackElo "1769"]
[TimeControl "60"]
[Termination "hyperion48 won on time"]
[StartTime "01:04:00"]
[EndDate "2010.12.08"]
[EndTime "01:06:11"]
[Link "https://www.chess.com/game/live/75096951"]

1. e4 {[%clk 0:01:00]} 1... e5 {[%clk 0:01:00]} 2. Nf3 {[%clk 0:00:59.7]} 2... Nc6 {[%clk 0:00:58.2]} 3. Bc4 {[%clk 0:00:59.2]} 3... Nf6 {[%clk 0:00:56.5]} 4. Ng5 {[%clk 0:00:58.2]} 4... d5 {[%clk 0:00:55.5]} 5. exd5 {[%clk 0:00:57.7]} 5... Nxd5 {[%clk 0:00:53.4]} 6. Nxf7 {[%clk 0:00:55.5]} 6... Kxf7 {[%clk 0:00:52.3]} 7. Qf3+ {[%clk 0:00:54.4]} 7... Qf6 {[%clk 0:00:48.6]} 8. Bxd5+ {[%clk 0:00:52.1]} 8... Be6 {[%clk 0:00:46]} 9. Bxc6 {[%clk 0:00:50]} 9... bxc6 {[%clk 0:00:45.5]} 10. Qxc6 {[%clk 0:00:47.6]} 10... Rd8 {[%clk 0:00:43.6]} 11. d3 {[%clk 0:00:39.9]} 11... Bd6 {[%clk 0:00:41.2]} 12. Nc3 {[%clk 0:00:37]} 12... Bb4 {[%clk 0:00:38.1]} 13. Bd2 {[%clk 0:00:32.8]} 13... Rd7 {[%clk 0:00:36]} 14. Ne4 {[%clk 0:00:27.2]} 14... Bxd2+ {[%clk 0:00:32.9]} 15. Kxd2 {[%clk 0:00:26.9]} 15... Qf5 {[%clk 0:00:31.3]} 16. Raf1 {[%clk 0:00:21.1]} 16... Ke8 {[%clk 0:00:28]} 17. Qa8+ {[%clk 0:00:17.6]} 17... Rd8 {[%clk 0:00:26.1]} 18. Qc6+ {[%clk 0:00:15.9]} 18... Bd7 {[%clk 0:00:23.9]} 19. Qc3 {[%clk 0:00:13.8]} 19... Rf8 {[%clk 0:00:22.3]} 20. Kc1 {[%clk 0:00:12.5]} 20... Qg4 {[%clk 0:00:19.6]} 21. Kb1 {[%clk 0:00:10.9]} 21... Qxg2 {[%clk 0:00:18.7]} 22. Re1 {[%clk 0:00:10.5]} 22... Bf5 {[%clk 0:00:17]} 23. Nc5 {[%clk 0:00:08.9]} 23... Be6 {[%clk 0:00:14.4]} 24. Rxe5 {[%clk 0:00:07.8]} 24... Rd6 {[%clk 0:00:12.6]} 25. Nxe6 {[%clk 0:00:06.8]} 25... Rxe6 {[%clk 0:00:12.1]} 26. Rxe6+ {[%clk 0:00:06.1]} 26... Kd8 {[%clk 0:00:12.1]} 27. Rhe1 {[%clk 0:00:05.3]} 27... Qxf2 {[%clk 0:00:10]} 28. Qxg7 {[%clk 0:00:04.7]} 28... Qxe1+ {[%clk 0:00:09]} 29. Rxe1 {[%clk 0:00:02.7]} 29... Re8 {[%clk 0:00:09]} 30. Qe5 {[%clk 0:00:01.6]} 30... Rxe5 {[%clk 0:00:08.1]} 31. Rxe5 {[%clk 0:00:01.4]} 31... Kd7 {[%clk 0:00:08.1]} 32. Rh5 {[%clk 0:00:01.2]} 32... Ke7 {[%clk 0:00:07.4]} 33. Rxh7+ {[%clk 0:00:00.9]} 33... Kf6 {[%clk 0:00:07.4]} 34. Rh3 {[%clk 0:00:00.6]} 34... a5 {[%clk 0:00:07.1]} 35. Rg3 {[%clk 0:00:00.4]} 35... c5 {[%clk 0:00:07.1]} 36. Rg1 {[%clk 0:00:00.1]} 36... Ke6 {[%clk 0:00:07]} 0-1

[Event "Live Chess"]
[Site "Chess.com"]
[Date "2010.12.08"]
[Round "-"]
[White "hyperion48"]
[Black "hipposcottimus"]
[Result "0-1"]
[CurrentPosition "3b4/1P3kpp/2b5/B4p2/8/8/P4PPP/3R2K1 w - -"]
[Timezone "UTC"]
[ECO "C65"]
[ECOUrl "https://www.chess.com/openings/Ruy-Lopez-Opening-Berlin-Defense-4.O-O"]
[UTCDate "2010.12.08"]
[UTCTime "01:01:15"]
[WhiteElo "1763"]
[BlackElo "1690"]
[TimeControl "60"]
[Termination "hipposcottimus won on time"]
[StartTime "01:01:15"]
[EndDate "2010.12.08"]
[EndTime "01:03:08"]
[Link "https://www.chess.com/game/live/75096248"]

1. e4 {[%clk 0:01:00]} 1... e5 {[%clk 0:01:00]} 2. Nf3 {[%clk 0:00:58.2]} 2... Nc6 {[%clk 0:00:59.6]} 3. Bb5 {[%clk 0:00:57.5]} 3... Nf6 {[%clk 0:00:55.4]} 4. O-O {[%clk 0:00:55.4]} 4... Nd4 {[%clk 0:00:53.5]} 5. Nxd4 {[%clk 0:00:53.5]} 5... exd4 {[%clk 0:00:53.1]} 6. c3 {[%clk 0:00:52.6]} 6... c6 {[%clk 0:00:51.1]} 7. Be2 {[%clk 0:00:51.1]} 7... d5 {[%clk 0:00:50.3]} 8. cxd4 {[%clk 0:00:49.7]} 8... dxe4 {[%clk 0:00:48.7]} 9. d3 {[%clk 0:00:49]} 9... Qxd4 {[%clk 0:00:47.1]} 10. dxe4 {[%clk 0:00:47.1]} 10... Qxe4 {[%clk 0:00:46.8]} 11. Bd3 {[%clk 0:00:45.4]} 11... Qd5 {[%clk 0:00:42.3]} 12. Nc3 {[%clk 0:00:41.9]} 12... Be7 {[%clk 0:00:41.9]} 13. Nxd5 {[%clk 0:00:40.3]} 13... Nxd5 {[%clk 0:00:41.7]} 14. Be4 {[%clk 0:00:38.7]} 14... O-O {[%clk 0:00:40.9]} 15. Bxd5 {[%clk 0:00:37.8]} 15... cxd5 {[%clk 0:00:40.7]} 16. Qxd5 {[%clk 0:00:37]} 16... Be6 {[%clk 0:00:40.4]} 17. Qd2 {[%clk 0:00:34.6]} 17... Bc5 {[%clk 0:00:39.3]} 18. Re1 {[%clk 0:00:33.3]} 18... b6 {[%clk 0:00:38.5]} 19. b3 {[%clk 0:00:32.5]} 19... a5 {[%clk 0:00:37.8]} 20. Bb2 {[%clk 0:00:31.2]} 20... Rac8 {[%clk 0:00:35.3]} 21. Qg5 {[%clk 0:00:29.8]} 21... f6 {[%clk 0:00:31.1]} 22. Qd2 {[%clk 0:00:26.2]} 22... Bf5 {[%clk 0:00:30.4]} 23. Rac1 {[%clk 0:00:24.3]} 23... Bg6 {[%clk 0:00:30.1]} 24. Bd4 {[%clk 0:00:22.1]} 24... Bb4 {[%clk 0:00:29.5]} 25. Rxc8 {[%clk 0:00:15.2]} 25... Bxd2 {[%clk 0:00:27.5]} 26. Rxf8+ {[%clk 0:00:09.1]} 26... Kxf8 {[%clk 0:00:27.1]} 27. Rd1 {[%clk 0:00:06]} 27... Bh6 {[%clk 0:00:26.7]} 28. Bxb6 {[%clk 0:00:06]} 28... Be8 {[%clk 0:00:26.4]} 29. Bxa5 {[%clk 0:00:02.7]} 29... Kf7 {[%clk 0:00:26.1]} 30. b4 {[%clk 0:00:02.7]} 30... f5 {[%clk 0:00:25.8]} 31. b5 {[%clk 0:00:02.7]} 31... Bg5 {[%clk 0:00:25.3]} 32. b6 {[%clk 0:00:02.7]} 32... Bd8 {[%clk 0:00:24.2]} 33. b7 {[%clk 0:00:02.7]} 33... Bc6 {[%clk 0:00:20.9]} 0-1

[Event "Live Chess"]
[Site "Chess.com"]
[Date "2010.12.08"]
[Round "-"]
[White "hipposcottimus"]
[Black "Snart"]
[Result "1-0"]
[CurrentPosition "7r/5p1k/1p1b1B2/2p2P2/2P5/3P1K2/R5rP/R7 b - -"]
[Timezone "UTC"]
[ECO "B20"]
[ECOUrl "https://www.chess.com/openings/Sicilian-Defense"]
[UTCDate "2010.12.08"]
[UTCTime "00:57:30"]
[WhiteElo "1679"]
[BlackElo "1462"]
[TimeControl "60"]
[Termination "hipposcottimus won on time"]
[StartTime "00:57:30"]
[EndDate "2010.12.08"]
[EndTime "00:59:44"]
[Link "https://www.chess.com/game/live/75095547"]

1. e4 {[%clk 0:01:00]} 1... c5 {[%clk 0:01:00]} 2. Bb5 {[%clk 0:00:58.1]} 2... Nc6 {[%clk 0:00:58.4]} 3. Bxc6 {[%clk 0:00:57.1]} 3... dxc6 {[%clk 0:00:56.3]} 4. Nf3 {[%clk 0:00:56.8]} 4... Bg4 {[%clk 0:00:54]} 5. c4 {[%clk 0:00:54.7]} 5... e5 {[%clk 0:00:52.7]} 6. d3 {[%clk 0:00:53.4]} 6... Qc7 {[%clk 0:00:51.9]} 7. Bd2 {[%clk 0:00:47.9]} 7... O-O-O {[%clk 0:00:50.5]} 8. b4 {[%clk 0:00:43.2]} 8... Nf6 {[%clk 0:00:46.9]} 9. b5 {[%clk 0:00:41.4]} 9... Bxf3 {[%clk 0:00:44.2]} 10. Qxf3 {[%clk 0:00:39.5]} 10... Be7 {[%clk 0:00:39.7]} 11. Nc3 {[%clk 0:00:37.8]} 11... h5 {[%clk 0:00:37.2]} 12. a4 {[%clk 0:00:36.5]} 12... Kd7 {[%clk 0:00:35.3]} 13. a5 {[%clk 0:00:32.6]} 13... b6 {[%clk 0:00:31]} 14. axb6 {[%clk 0:00:28.3]} 14... axb6 {[%clk 0:00:27.4]} 15. bxc6+ {[%clk 0:00:26.5]} 15... Qxc6 {[%clk 0:00:25.7]} 16. Qf5+ {[%clk 0:00:25.2]} 16... Ke8 {[%clk 0:00:24.2]} 17. O-O {[%clk 0:00:22.6]} 17... h4 {[%clk 0:00:22.8]} 18. Nd5 {[%clk 0:00:21.2]} 18... Qb7 {[%clk 0:00:18.3]} 19. Nxf6+ {[%clk 0:00:19.8]} 19... gxf6 {[%clk 0:00:16]} 20. Ra2 {[%clk 0:00:13.3]} 20... Qd7 {[%clk 0:00:14.8]} 21. Rfa1 {[%clk 0:00:12.8]} 21... Qxf5 {[%clk 0:00:13.3]} 22. exf5 {[%clk 0:00:12.5]} 22... h3 {[%clk 0:00:11.6]} 23. Be3 {[%clk 0:00:12.2]} 23... Kf8 {[%clk 0:00:10.5]} 24. f3 {[%clk 0:00:10.9]} 24... Kg7 {[%clk 0:00:09.3]} 25. Bf2 {[%clk 0:00:10.3]} 25... Rdg8 {[%clk 0:00:09]} 26. Bg3 {[%clk 0:00:09.6]} 26... Kh7 {[%clk 0:00:07]} 27. f4 {[%clk 0:00:09.1]} 27... hxg2 {[%clk 0:00:06.1]} 28. Kxg2 {[%clk 0:00:07.4]} 28... exf4 {[%clk 0:00:05.2]} 29. Kf2 {[%clk 0:00:06.6]} 29... Bd6 {[%clk 0:00:03.9]} 30. Bh4 {[%clk 0:00:03.7]} 30... f3 {[%clk 0:00:01.2]} 31. Bxf6 {[%clk 0:00:02.8]} 31... Rg2+ {[%clk 0:00:00.1]} 32. Kxf3 {[%clk 0:00:01.8]} 1-0

[Event "Live Chess"]
[Site "Chess.com"]
[Date "2010.12.08"]
[Round "-"]
[White "bds"]
[Black "hipposcottimus"]
[Result "0-1"]
[CurrentPosition "r2q1r1k/2p1b1pp/pp6/2P1Np2/3n1p2/1B1P3P/PP3PP1/R2b1RK1 w - -"]
[Timezone "UTC"]
[ECO "C50"]
[ECOUrl "https://www.chess.com/openings/Italian-Game"]
[UTCDate "2010.12.08"]
[UTCTime "00:38:58"]
[WhiteElo "1841"]
[BlackElo "1679"]
[TimeControl "60"]
[Termination "hipposcottimus won by resignation"]
[StartTime "00:38:58"]
[EndDate "2010.12.08"]
[EndTime "00:40:16"]
[Link "https://www.chess.com/game/live/75091319"]

1. e4 {[%clk 0:01:00]} 1... e5 {[%clk 0:01:00]} 2. Bc4 {[%clk 0:00:59.4]} 2... Nc6 {[%clk 0:00:59.3]} 3. Nf3 {[%clk 0:00:59.4]} 3... Nf6 {[%clk 0:00:58.1]} 4. d3 {[%clk 0:00:59.4]} 4... d5 {[%clk 0:00:56.6]} 5. exd5 {[%clk 0:00:57.2]} 5... Nxd5 {[%clk 0:00:55.4]} 6. Bg5 {[%clk 0:00:55]} 6... f6 {[%clk 0:00:53.7]} 7. Bh4 {[%clk 0:00:53.5]} 7... Be7 {[%clk 0:00:52.1]} 8. Bg3 {[%clk 0:00:53.5]} 8... O-O {[%clk 0:00:51.1]} 9. Bb3 {[%clk 0:00:47.8]} 9... Kh8 {[%clk 0:00:49.6]} 10. c4 {[%clk 0:00:45.8]} 10... Nf4 {[%clk 0:00:47.9]} 11. Bxf4 {[%clk 0:00:43.1]} 11... exf4 {[%clk 0:00:47.6]} 12. O-O {[%clk 0:00:43.1]} 12... Bd6 {[%clk 0:00:46.8]} 13. c5 {[%clk 0:00:41.9]} 13... Be7 {[%clk 0:00:43.8]} 14. Nc3 {[%clk 0:00:41.9]} 14... Bg4 {[%clk 0:00:43.2]} 15. Ne4 {[%clk 0:00:40.6]} 15... f5 {[%clk 0:00:41.2]} 16. h3 {[%clk 0:00:34.7]} 16... Bh5 {[%clk 0:00:39.2]} 17. Nc3 {[%clk 0:00:31.9]} 17... b6 {[%clk 0:00:35]} 18. Nb5 {[%clk 0:00:30.3]} 18... a6 {[%clk 0:00:31.8]} 19. Nbd4 {[%clk 0:00:27.7]} 19... Nxd4 {[%clk 0:00:29.6]} 20. Ne5 {[%clk 0:00:25.8]} 20... Bxd1 {[%clk 0:00:26.3]} 0-1

[Event "Live Chess"]
[Site "Chess.com"]
[Date "2010.12.07"]
[Round "-"]
[White "hipposcottimus"]
[Black "nevermind666"]
[Result "1-0"]
[CurrentPosition "1k1r3r/2p4p/1p4p1/1P1pPp2/3P1P2/Q1Bq1N2/6PP/R5K1 b - -"]
[Timezone "UTC"]
[ECO "C02"]
[ECOUrl "https://www.chess.com/openings/French-Defense-Advance-Variation"]
[UTCDate "2010.12.07"]
[UTCTime "22:33:56"]
[WhiteElo "1666"]
[BlackElo "1497"]
[TimeControl "60"]
[Termination "hipposcottimus won on time"]
[StartTime "22:33:56"]
[EndDate "2010.12.07"]
[EndTime "22:35:55"]
[Link "https://www.chess.com/game/live/75061269"]

1. e4 {[%clk 0:01:00]} 1... e6 {[%clk 0:01:00]} 2. d4 {[%clk 0:00:59.6]} 2... d5 {[%clk 0:00:59.2]} 3. e5 {[%clk 0:00:58]} 3... Nc6 {[%clk 0:00:56.4]} 4. f4 {[%clk 0:00:55.5]} 4... Nh6 {[%clk 0:00:55.4]} 5. Nf3 {[%clk 0:00:54.5]} 5... f5 {[%clk 0:00:54.6]} 6. c4 {[%clk 0:00:53.2]} 6... Bd7 {[%clk 0:00:53.7]} 7. cxd5 {[%clk 0:00:51.6]} 7... exd5 {[%clk 0:00:52.9]} 8. Nc3 {[%clk 0:00:51.2]} 8... Bb4 {[%clk 0:00:49.2]} 9. Bd2 {[%clk 0:00:48.8]} 9... Bxc3 {[%clk 0:00:48.3]} 10. Bxc3 {[%clk 0:00:48.6]} 10... Qe7 {[%clk 0:00:46.9]} 11. Be2 {[%clk 0:00:47.4]} 11... O-O-O {[%clk 0:00:43.6]} 12. O-O {[%clk 0:00:47.1]} 12... g6 {[%clk 0:00:40.7]} 13. Rb1 {[%clk 0:00:46]} 13... Ng4 {[%clk 0:00:35.3]} 14. b4 {[%clk 0:00:45.6]} 14... Nb8 {[%clk 0:00:31.8]} 15. b5 {[%clk 0:00:43.5]} 15... b6 {[%clk 0:00:29.6]} 16. a4 {[%clk 0:00:42.5]} 16... a5 {[%clk 0:00:28.2]} 17. bxa6 {[%clk 0:00:40.5]} 17... Nxa6 {[%clk 0:00:27.3]} 18. Bxa6+ {[%clk 0:00:38.2]} 18... Kb8 {[%clk 0:00:26.2]} 19. Bb5 {[%clk 0:00:35.7]} 19... Bxb5 {[%clk 0:00:24.8]} 20. axb5 {[%clk 0:00:35.1]} 20... Qa3 {[%clk 0:00:23.2]} 21. Qc2 {[%clk 0:00:31.1]} 21... Ne3 {[%clk 0:00:19.1]} 22. Qd3 {[%clk 0:00:15.6]} 22... Nxf1 {[%clk 0:00:15.2]} 23. Rxf1 {[%clk 0:00:15.3]} 23... Qa2 {[%clk 0:00:12.3]} 24. Ra1 {[%clk 0:00:14.5]} 24... Qb3 {[%clk 0:00:10.3]} 25. Qd2 {[%clk 0:00:12.3]} 25... Qc4 {[%clk 0:00:08.3]} 26. Qb2 {[%clk 0:00:10.9]} 26... Qd3 {[%clk 0:00:05.3]} 27. Qa3 {[%clk 0:00:09.9]} 1-0